[Event "Titled Tuesday Blitz June 07 Early 2022"]
[White "Costachi, Mihnea"]
[Black "Bachmann, Axel"]
[WhiteFideId "1217518"]
[BlackFideId "3700488"]
[WhiteElo "2476"]
[BlackElo "2587"]
[Result "1-0"]
[Round "08"]
[TimeControl "180+1"]
[Date "2022.06.07"]
[WhiteClock "0:01:15"]
[BlackClock "0:01:14"]

1. d4 {[%clk 0:03:00]}  d5 {[%clk 0:02:57]} 2. c4 {[%clk 0:03:01]}  e6 {[%clk 0:02:56]} 3. Nc3 {[%clk 0:03:01]}  c6 {[%clk 0:02:55]} 4. cxd5 {[%clk 0:02:59]}  exd5 {[%clk 0:02:54]} 5. Qc2 {[%clk 0:03:00]}  Bd6 {[%clk 0:02:52]} 6. Nf3 {[%clk 0:02:59]}  Ne7 {[%clk 0:02:52]} 7. Bg5 {[%clk 0:02:59]}  f6 {[%clk 0:02:51]} 8. Bh4 {[%clk 0:02:59]}  Bf5 {[%clk 0:02:50]} 9. Qd2 {[%clk 0:02:59]}  Nd7 {[%clk 0:02:45]} 10. e3 {[%clk 0:02:59]}  O-O {[%clk 0:02:43]} 11. Bd3 {[%clk 0:03:00]}  a5 {[%clk 0:02:37]} 12. O-O {[%clk 0:02:59]}  Bxd3 {[%clk 0:02:31]} 13. Qxd3 {[%clk 0:02:59]}  Ng6 {[%clk 0:02:31]} 14. Bg3 {[%clk 0:02:59]}  Bxg3 {[%clk 0:02:30]} 15. hxg3 {[%clk 0:03:00]}  f5 {[%clk 0:02:30]} 16. Ne2 {[%clk 0:02:58]}  Nf6 {[%clk 0:02:22]} 17. Nf4 {[%clk 0:02:53]}  Ne4 {[%clk 0:02:22]} 18. Ne6 {[%clk 0:02:38]}  Qe7 {[%clk 0:02:22]} 19. Nxf8 {[%clk 0:02:38]}  Rxf8 {[%clk 0:02:23]} 20. a3 {[%clk 0:02:21]}  h5 {[%clk 0:02:20]} 21. b4 {[%clk 0:02:09]}  axb4 {[%clk 0:02:15]} 22. axb4 {[%clk 0:02:10]}  Qxb4 {[%clk 0:02:14]} 23. Rfb1 {[%clk 0:02:06]}  Qe7 {[%clk 0:02:13]} 24. Ra7 {[%clk 0:02:04]}  Nd6 {[%clk 0:02:12]} 25. Qa3 {[%clk 0:01:57]}  Qc7 {[%clk 0:01:51]} 26. Ra8 {[%clk 0:01:54]}  b5 {[%clk 0:01:32]} 27. Rxf8+ {[%clk 0:01:46]}  Nxf8 {[%clk 0:01:33]} 28. Ne5 {[%clk 0:01:44]}  Nc4 {[%clk 0:01:32]} 29. Nxc4 {[%clk 0:01:37]}  dxc4 {[%clk 0:01:33]} 30. Qc5 {[%clk 0:01:35]}  Ne6 {[%clk 0:01:25]} 31. Qxf5 {[%clk 0:01:32]}  Qd6 {[%clk 0:01:26]} 32. d5 {[%clk 0:01:21]}  cxd5 {[%clk 0:01:21]} 33. Rxb5 {[%clk 0:01:21]}  c3 {[%clk 0:01:19]} 34. Rxd5 {[%clk 0:01:16]}  Qc6 {[%clk 0:01:14]} 35. Rd1 {[%clk 0:01:15]} 1-0


[Site "https://www.chess.com"]

[Event "Titled Tuesday Blitz June 07 Early 2022"]
[White "Grischuk, Alexander"]
[Black "Maghsoodloo, Parham"]
[WhiteFideId "4126025"]
[BlackFideId "12539929"]
[WhiteElo "2762"]
[BlackElo "2607"]
[Result "0-1"]
[Round "08"]
[TimeControl "180+1"]
[Date "2022.06.07"]
[WhiteClock "0:00:02"]
[BlackClock "0:00:25"]

1. d4 {[%clk 0:03:00]}  Nf6 {[%clk 0:02:58]} 2. Nf3 {[%clk 0:03:01]}  d5 {[%clk 0:02:58]} 3. Bf4 {[%clk 0:03:01]}  c5 {[%clk 0:02:59]} 4. e3 {[%clk 0:03:02]}  Nc6 {[%clk 0:02:59]} 5. Nbd2 {[%clk 0:03:02]}  Nh5 {[%clk 0:03:00]} 6. dxc5 {[%clk 0:03:01]}  Nxf4 {[%clk 0:02:59]} 7. exf4 {[%clk 0:03:02]}  g6 {[%clk 0:02:59]} 8. c3 {[%clk 0:02:49]}  Bh6 {[%clk 0:02:58]} 9. g3 {[%clk 0:02:48]}  Bg7 {[%clk 0:02:57]} 10. Nb3 {[%clk 0:02:42]}  a5 {[%clk 0:02:48]} 11. Bb5 {[%clk 0:02:26]}  Bh3 {[%clk 0:02:40]} 12. Ng5 {[%clk 0:02:19]}  Bf5 {[%clk 0:02:30]} 13. Nd4 {[%clk 0:02:18]}  Bd7 {[%clk 0:02:29]} 14. O-O {[%clk 0:02:10]}  e5 {[%clk 0:02:29]} 15. Ndf3 {[%clk 0:01:53]}  h6 {[%clk 0:02:29]} 16. Qxd5 {[%clk 0:01:00]}  hxg5 {[%clk 0:02:28]} 17. Nxg5 {[%clk 0:01:00]}  O-O {[%clk 0:02:20]} 18. Rad1 {[%clk 0:00:49]}  Bg4 {[%clk 0:02:15]} 19. f3 {[%clk 0:00:48]}  Qxd5 {[%clk 0:02:00]} 20. Rxd5 {[%clk 0:00:49]}  Ne7 {[%clk 0:01:28]} 21. Rd2 {[%clk 0:00:44]}  Bf5 {[%clk 0:01:24]} 22. g4 {[%clk 0:00:44]}  Bc8 {[%clk 0:01:18]} 23. Re1 {[%clk 0:00:36]}  exf4 {[%clk 0:01:09]} 24. Rxe7 {[%clk 0:00:13]}  Bf6 {[%clk 0:01:09]} 25. Rxf7 {[%clk 0:00:12]}  Rxf7 {[%clk 0:01:09]} 26. Nxf7 {[%clk 0:00:12]}  Kxf7 {[%clk 0:01:10]} 27. Rd6 {[%clk 0:00:09]}  Be7 {[%clk 0:01:09]} 28. Bc4+ {[%clk 0:00:08]}  Kg7 {[%clk 0:01:05]} 29. Rd5 {[%clk 0:00:08]}  g5 {[%clk 0:00:58]} 30. Kg2 {[%clk 0:00:08]}  Kf6 {[%clk 0:00:58]} 31. Rd2 {[%clk 0:00:02]}  a4 {[%clk 0:00:45]} 32. b4 {[%clk 0:00:02]}  axb3 {[%clk 0:00:45]} 33. axb3 {[%clk 0:00:03]}  Bxc5 {[%clk 0:00:44]} 34. b4 {[%clk 0:00:03]}  Be7 {[%clk 0:00:43]} 35. Bd5 {[%clk 0:00:04]}  Ra3 {[%clk 0:00:41]} 36. Rc2 {[%clk 0:00:04]}  b6 {[%clk 0:00:39]} 37. Re2 {[%clk 0:00:04]}  Rxc3 {[%clk 0:00:39]} 38. h4 {[%clk 0:00:05]}  Bxb4 {[%clk 0:00:30]} 39. h5 {[%clk 0:00:02]}  Rd3 {[%clk 0:00:30]} 40. Be4 {[%clk 0:00:01]}  Rd2 {[%clk 0:00:30]} 41. Rxd2 {[%clk 0:00:01]}  Bxd2 {[%clk 0:00:31]} 42. h6 {[%clk 0:00:01]}  b5 {[%clk 0:00:31]} 43. h7 {[%clk 0:00:01]}  Kg7 {[%clk 0:00:31]} 44. Kf1 {[%clk 0:00:02]}  b4 {[%clk 0:00:31]} 45. Ke2 {[%clk 0:00:03]}  Bc3 {[%clk 0:00:31]} 46. Kd3 {[%clk 0:00:04]}  Be6 {[%clk 0:00:31]} 47. Kc2 {[%clk 0:00:04]}  Bf6 {[%clk 0:00:30]} 48. Kb1 {[%clk 0:00:03]}  b3 {[%clk 0:00:30]} 49. Kc1 {[%clk 0:00:04]}  Bf7 {[%clk 0:00:27]} 50. Kb1 {[%clk 0:00:04]}  b2 {[%clk 0:00:25]} 51. Bf5 {[%clk 0:00:02]}  Kh6 {[%clk 0:00:25]} 52. Be4 {[%clk 0:00:02]}  Bg6 {[%clk 0:00:25]} 0-1


[Site "https://www.chess.com"]

[Event "Titled Tuesday Blitz June 07 Early 2022"]
[White "Harvey, Marcus R"]
[Black "Ivic, Velimir"]
[WhiteFideId "400092"]
[BlackFideId "950122"]
[WhiteElo "2485"]
[BlackElo "2610"]
[Result "0-1"]
[Round "08"]
[TimeControl "180+1"]
[Date "2022.06.07"]
[WhiteClock "0:00:04"]
[BlackClock "0:00:45"]

1. e4 {[%clk 0:03:00]}  c5 {[%clk 0:02:56]} 2. Nf3 {[%clk 0:02:59]}  Nc6 {[%clk 0:02:57]} 3. Bb5 {[%clk 0:02:59]}  e6 {[%clk 0:02:58]} 4. O-O {[%clk 0:02:58]}  Nge7 {[%clk 0:02:58]} 5. Re1 {[%clk 0:02:55]}  b6 {[%clk 0:02:59]} 6. c3 {[%clk 0:02:54]}  a6 {[%clk 0:02:59]} 7. Bf1 {[%clk 0:02:52]}  d5 {[%clk 0:03:00]} 8. exd5 {[%clk 0:02:52]}  Nxd5 {[%clk 0:03:01]} 9. d4 {[%clk 0:02:52]}  cxd4 {[%clk 0:03:02]} 10. Nxd4 {[%clk 0:02:52]}  Bb7 {[%clk 0:03:00]} 11. Nxc6 {[%clk 0:02:52]}  Bxc6 {[%clk 0:03:01]} 12. Nd2 {[%clk 0:02:53]}  Qc7 {[%clk 0:03:00]} 13. Nf3 {[%clk 0:02:50]}  Bd6 {[%clk 0:02:59]} 14. h3 {[%clk 0:02:45]}  h6 {[%clk 0:02:57]} 15. Nd4 {[%clk 0:02:45]}  Bb7 {[%clk 0:02:49]} 16. Nf5 {[%clk 0:02:27]}  Bh2+ {[%clk 0:02:49]} 17. Kh1 {[%clk 0:02:27]}  O-O-O {[%clk 0:02:50]} 18. Nd4 {[%clk 0:02:21]}  Bf4 {[%clk 0:02:45]} 19. Qa4 {[%clk 0:02:18]}  b5 {[%clk 0:02:39]} 20. Bxb5 {[%clk 0:02:12]}  Bxc1 {[%clk 0:02:26]} 21. Bxa6 {[%clk 0:01:59]}  Bf4 {[%clk 0:01:43]} 22. Re4 {[%clk 0:01:45]}  Bxa6 {[%clk 0:01:36]} 23. Qxa6+ {[%clk 0:01:44]}  Qb7 {[%clk 0:01:36]} 24. Qa4 {[%clk 0:01:31]}  Nb6 {[%clk 0:01:31]} 25. Qc6+ {[%clk 0:01:23]}  Bc7 {[%clk 0:01:31]} 26. a4 {[%clk 0:01:16]}  Rd6 {[%clk 0:01:26]} 27. Qxb7+ {[%clk 0:01:14]}  Kxb7 {[%clk 0:01:27]} 28. a5 {[%clk 0:01:13]}  Nd5 {[%clk 0:01:22]} 29. Nb5 {[%clk 0:01:11]}  Ra6 {[%clk 0:01:22]} 30. b4 {[%clk 0:01:08]}  Rd8 {[%clk 0:01:20]} 31. Rd1 {[%clk 0:01:01]}  Rc6 {[%clk 0:01:11]} 32. Rd3 {[%clk 0:00:52]}  Nf6 {[%clk 0:01:02]} 33. Rxd8 {[%clk 0:00:44]}  Bxd8 {[%clk 0:01:03]} 34. Rd4 {[%clk 0:00:43]}  Be7 {[%clk 0:01:03]} 35. f3 {[%clk 0:00:37]}  Ka6 {[%clk 0:00:59]} 36. Na3 {[%clk 0:00:19]}  Rxc3 {[%clk 0:00:58]} 37. Nc4 {[%clk 0:00:15]}  Nd5 {[%clk 0:00:58]} 38. Nd2 {[%clk 0:00:08]}  Bxb4 {[%clk 0:00:57]} 39. Ne4 {[%clk 0:00:08]}  Rc1+ {[%clk 0:00:55]} 40. Kh2 {[%clk 0:00:08]}  Kxa5 {[%clk 0:00:55]} 41. g4 {[%clk 0:00:06]}  Kb5 {[%clk 0:00:53]} 42. h4 {[%clk 0:00:05]}  Kc6 {[%clk 0:00:47]} 43. g5 {[%clk 0:00:04]}  hxg5 {[%clk 0:00:47]} 44. Nxg5 {[%clk 0:00:05]}  Bd6+ {[%clk 0:00:46]} 45. Kg2 {[%clk 0:00:05]}  Rc2+ {[%clk 0:00:46]} 46. Kf1 {[%clk 0:00:05]}  Ne3+ {[%clk 0:00:46]} 47. Kg1 {[%clk 0:00:05]}  Bc5 {[%clk 0:00:43]} 48. Re4 {[%clk 0:00:04]}  Nf5+ {[%clk 0:00:43]} 49. Kf1 {[%clk 0:00:04]}  Ng3+ {[%clk 0:00:44]} 50. Ke1 {[%clk 0:00:04]}  Nxe4 {[%clk 0:00:45]} 0-1


[Site "https://www.chess.com"]

[Event "Titled Tuesday Blitz June 07 Early 2022"]
[White "Jumabayev, Rinat"]
[Black "Andreikin, Dmitry"]
[WhiteFideId "13702661"]
[BlackFideId "4158814"]
[WhiteElo "2561"]
[BlackElo "2736"]
[Result "0-1"]
[Round "08"]
[TimeControl "180+1"]
[Date "2022.06.07"]
[WhiteClock "0:00:01"]
[BlackClock "0:00:14"]

1. e4 {[%clk 0:03:00]}  c5 {[%clk 0:02:59]} 2. Nf3 {[%clk 0:03:01]}  e6 {[%clk 0:02:59]} 3. c3 {[%clk 0:02:53]}  Nf6 {[%clk 0:02:58]} 4. e5 {[%clk 0:02:54]}  Nd5 {[%clk 0:02:59]} 5. d4 {[%clk 0:02:54]}  cxd4 {[%clk 0:02:59]} 6. cxd4 {[%clk 0:02:54]}  b6 {[%clk 0:02:59]} 7. Bc4 {[%clk 0:02:50]}  Bb7 {[%clk 0:02:59]} 8. O-O {[%clk 0:02:42]}  Na6 {[%clk 0:02:58]} 9. Re1 {[%clk 0:02:41]}  Nac7 {[%clk 0:02:57]} 10. Bg5 {[%clk 0:02:37]}  Be7 {[%clk 0:02:57]} 11. Bxe7 {[%clk 0:02:34]}  Nxe7 {[%clk 0:02:56]} 12. Nc3 {[%clk 0:02:33]}  O-O {[%clk 0:02:55]} 13. Qd3 {[%clk 0:02:26]}  Rc8 {[%clk 0:02:52]} 14. Rad1 {[%clk 0:02:20]}  Ncd5 {[%clk 0:02:46]} 15. Ng5 {[%clk 0:01:55]}  Ng6 {[%clk 0:01:58]} 16. Bxd5 {[%clk 0:01:54]}  Bxd5 {[%clk 0:01:57]} 17. Qg3 {[%clk 0:01:51]}  Bb7 {[%clk 0:01:44]} 18. d5 {[%clk 0:01:36]}  Qc7 {[%clk 0:01:39]} 19. h4 {[%clk 0:01:21]}  h6 {[%clk 0:01:08]} 20. Nf3 {[%clk 0:00:58]}  Qb8 {[%clk 0:00:54]} 21. Ne4 {[%clk 0:00:39]}  Bxd5 {[%clk 0:00:50]} 22. h5 {[%clk 0:00:38]}  Bxe4 {[%clk 0:00:45]} 23. Rxe4 {[%clk 0:00:39]}  Ne7 {[%clk 0:00:43]} 24. Nh4 {[%clk 0:00:38]}  Rc5 {[%clk 0:00:36]} 25. Rxd7 {[%clk 0:00:33]}  Re8 {[%clk 0:00:35]} 26. Qf4 {[%clk 0:00:24]}  Rd5 {[%clk 0:00:25]} 27. Rxd5 {[%clk 0:00:06]}  Nxd5 {[%clk 0:00:26]} 28. Qd2 {[%clk 0:00:06]}  Rc8 {[%clk 0:00:23]} 29. Nf3 {[%clk 0:00:06]}  Qc7 {[%clk 0:00:23]} 30. Rd4 {[%clk 0:00:06]}  Qc1+ {[%clk 0:00:21]} 31. Kh2 {[%clk 0:00:04]}  Qb1 {[%clk 0:00:21]} 32. Qe2 {[%clk 0:00:04]}  Qf5 {[%clk 0:00:20]} 33. Ne1 {[%clk 0:00:03]}  Rc1 {[%clk 0:00:19]} 34. g3 {[%clk 0:00:03]}  Qb1 {[%clk 0:00:19]} 35. Nf3 {[%clk 0:00:02]}  Rh1+ {[%clk 0:00:17]} 36. Kg2 {[%clk 0:00:03]}  Rxh5 {[%clk 0:00:18]} 37. Nh2 {[%clk 0:00:02]}  Qg6 {[%clk 0:00:15]} 38. Qf3 {[%clk 0:00:01]}  Rxe5 {[%clk 0:00:14]} 0-1


[Site "https://www.chess.com"]

[Event "Titled Tuesday Blitz June 07 Early 2022"]
[White "Khamdamova, Afruza"]
[Black "Riehle, Marco"]
[WhiteFideId "14210444"]
[BlackFideId "12904392"]
[WhiteElo "1660"]
[BlackElo "2462"]
[Result "1-0"]
[Round "08"]
[TimeControl "180+1"]
[Date "2022.06.07"]
[WhiteClock "0:01:03"]
[BlackClock "0:00:32"]

1. e4 {[%clk 0:03:00]}  e5 {[%clk 0:02:59]} 2. Nf3 {[%clk 0:03:00]}  Nf6 {[%clk 0:02:59]} 3. Nxe5 {[%clk 0:03:00]}  Nxe4 {[%clk 0:02:59]} 4. Qe2 {[%clk 0:02:59]}  Qe7 {[%clk 0:02:58]} 5. Qxe4 {[%clk 0:02:58]}  d6 {[%clk 0:02:57]} 6. d4 {[%clk 0:02:58]}  dxe5 {[%clk 0:02:57]} 7. dxe5 {[%clk 0:02:58]}  Nc6 {[%clk 0:02:57]} 8. f4 {[%clk 0:02:56]}  Bg4 {[%clk 0:02:54]} 9. Nc3 {[%clk 0:02:52]}  O-O-O {[%clk 0:02:50]} 10. Be3 {[%clk 0:02:47]}  Qh4+ {[%clk 0:02:47]} 11. g3 {[%clk 0:02:45]}  Qh5 {[%clk 0:02:47]} 12. Bg2 {[%clk 0:02:43]}  Bf5 {[%clk 0:02:42]} 13. Qa4 {[%clk 0:02:40]}  Nb4 {[%clk 0:02:39]} 14. O-O {[%clk 0:02:33]}  a6 {[%clk 0:02:32]} 15. Rac1 {[%clk 0:02:22]}  Qg6 {[%clk 0:02:27]} 16. a3 {[%clk 0:02:05]}  Bxc2 {[%clk 0:02:22]} 17. b3 {[%clk 0:02:04]}  Nd3 {[%clk 0:01:40]} 18. Rxc2 {[%clk 0:02:00]}  Nc5 {[%clk 0:01:39]} 19. f5 {[%clk 0:01:39]}  Qb6 {[%clk 0:01:16]} 20. Qc4 {[%clk 0:01:31]}  Qxb3 {[%clk 0:01:07]} 21. Qxb3 {[%clk 0:01:31]}  Nxb3 {[%clk 0:01:08]} 22. Nd5 {[%clk 0:01:30]}  c6 {[%clk 0:01:07]} 23. Rb1 {[%clk 0:01:24]}  Kb8 {[%clk 0:00:55]} 24. Bb6 {[%clk 0:01:20]}  Rd7 {[%clk 0:00:45]} 25. e6 {[%clk 0:01:18]}  fxe6 {[%clk 0:00:45]} 26. fxe6 {[%clk 0:01:18]}  Rd6 {[%clk 0:00:45]} 27. e7 {[%clk 0:01:13]}  Bxe7 {[%clk 0:00:44]} 28. Nxe7 {[%clk 0:01:12]}  Rd3 {[%clk 0:00:42]} 29. Bf1 {[%clk 0:01:07]}  Rf3 {[%clk 0:00:33]} 30. Be2 {[%clk 0:01:05]}  Rf7 {[%clk 0:00:34]} 31. Nxc6+ {[%clk 0:01:04]}  bxc6 {[%clk 0:00:33]} 32. Rxb3 {[%clk 0:01:05]}  Kc8 {[%clk 0:00:33]} 33. Rxc6+ {[%clk 0:01:03]}  Kd7 {[%clk 0:00:33]} 34. Rc7+ {[%clk 0:01:03]}  Ke8 {[%clk 0:00:33]} 35. Re3+ {[%clk 0:01:03]}  Kf8 {[%clk 0:00:32]} 36. Rc8# {[%clk 0:01:03]} 1-0


[Site "https://www.chess.com"]

[Event "Titled Tuesday Blitz June 07 Early 2022"]
[White "Korchmar, Vasiliy"]
[Black "Molina, Roberto Junio Brito"]
[WhiteFideId "24131750"]
[BlackFideId "2109450"]
[WhiteElo "2370"]
[BlackElo "2432"]
[Result "1-0"]
[Round "08"]
[TimeControl "180+1"]
[Date "2022.06.07"]
[WhiteClock "0:00:02"]
[BlackClock "0:00:08"]

1. e4 {[%clk 0:03:00]}  c6 {[%clk 0:02:59]} 2. d4 {[%clk 0:03:00]}  d5 {[%clk 0:03:00]} 3. e5 {[%clk 0:03:01]}  Bf5 {[%clk 0:02:59]} 4. c4 {[%clk 0:03:01]}  e6 {[%clk 0:02:59]} 5. Nc3 {[%clk 0:03:01]}  Ne7 {[%clk 0:02:59]} 6. a3 {[%clk 0:02:54]}  dxc4 {[%clk 0:02:54]} 7. Bxc4 {[%clk 0:02:53]}  Nd7 {[%clk 0:02:54]} 8. Nge2 {[%clk 0:02:53]}  Nb6 {[%clk 0:02:54]} 9. Ba2 {[%clk 0:02:53]}  Ned5 {[%clk 0:02:53]} 10. Ng3 {[%clk 0:02:52]}  Bg6 {[%clk 0:02:52]} 11. O-O {[%clk 0:02:52]}  Be7 {[%clk 0:02:52]} 12. f4 {[%clk 0:02:48]}  Qd7 {[%clk 0:02:50]} 13. Nce4 {[%clk 0:02:28]}  O-O-O {[%clk 0:02:42]} 14. Qf3 {[%clk 0:02:17]}  Nc7 {[%clk 0:02:03]} 15. Be3 {[%clk 0:02:14]}  Nb5 {[%clk 0:02:00]} 16. Rfd1 {[%clk 0:02:11]}  Kb8 {[%clk 0:01:57]} 17. Rac1 {[%clk 0:01:47]}  Nd5 {[%clk 0:01:55]} 18. Bf2 {[%clk 0:01:46]}  f6 {[%clk 0:01:44]} 19. a4 {[%clk 0:01:41]}  Nbc7 {[%clk 0:01:43]} 20. Nc5 {[%clk 0:01:05]}  Qc8 {[%clk 0:01:40]} 21. Nge4 {[%clk 0:01:03]}  Rhf8 {[%clk 0:01:38]} 22. Qg3 {[%clk 0:00:56]}  Ka8 {[%clk 0:01:35]} 23. a5 {[%clk 0:00:49]}  a6 {[%clk 0:01:33]} 24. Kh1 {[%clk 0:00:42]}  fxe5 {[%clk 0:01:13]} 25. fxe5 {[%clk 0:00:41]}  Rf7 {[%clk 0:00:59]} 26. Bg1 {[%clk 0:00:42]}  Rdf8 {[%clk 0:00:59]} 27. Bc4 {[%clk 0:00:37]}  Bh5 {[%clk 0:00:49]} 28. Rd3 {[%clk 0:00:34]}  Bg6 {[%clk 0:00:49]} 29. Rb3 {[%clk 0:00:34]}  Nb5 {[%clk 0:00:49]} 30. Bxb5 {[%clk 0:00:27]}  cxb5 {[%clk 0:00:49]} 31. Nd6 {[%clk 0:00:17]}  Bxd6 {[%clk 0:00:47]} 32. exd6 {[%clk 0:00:18]}  Bf5 {[%clk 0:00:39]} 33. d7 {[%clk 0:00:17]}  Qb8 {[%clk 0:00:37]} 34. Qh4 {[%clk 0:00:08]}  h6 {[%clk 0:00:33]} 35. Ra1 {[%clk 0:00:07]}  Qf4 {[%clk 0:00:28]} 36. Qe1 {[%clk 0:00:07]}  Rd8 {[%clk 0:00:25]} 37. Rxb5 {[%clk 0:00:06]}  axb5 {[%clk 0:00:24]} 38. a6 {[%clk 0:00:07]}  b6 {[%clk 0:00:25]} 39. Nxe6 {[%clk 0:00:07]}  Bxe6 {[%clk 0:00:24]} 40. Qxe6 {[%clk 0:00:07]}  Rfxd7 {[%clk 0:00:17]} 41. a7 {[%clk 0:00:08]}  Qc7 {[%clk 0:00:16]} 42. h3 {[%clk 0:00:08]}  Qb7 {[%clk 0:00:16]} 43. Bh2 {[%clk 0:00:07]}  Re7 {[%clk 0:00:14]} 44. Qg6 {[%clk 0:00:07]}  Rde8 {[%clk 0:00:14]} 45. Be5 {[%clk 0:00:07]}  Ne3 {[%clk 0:00:14]} 46. Rc1 {[%clk 0:00:07]}  Nc4 {[%clk 0:00:13]} 47. Bg3 {[%clk 0:00:06]}  Qd5 {[%clk 0:00:12]} 48. b3 {[%clk 0:00:06]}  Na5 {[%clk 0:00:10]} 49. Qxb6 {[%clk 0:00:05]}  Nb7 {[%clk 0:00:09]} 50. Kh2 {[%clk 0:00:04]}  Rd7 {[%clk 0:00:08]} 51. Rc6 {[%clk 0:00:04]}  g5 {[%clk 0:00:08]} 52. Qa6 {[%clk 0:00:03]}  h5 {[%clk 0:00:08]} 53. Qb6 {[%clk 0:00:02]}  h4 {[%clk 0:00:09]} 54. Be5 {[%clk 0:00:02]}  Rxe5 {[%clk 0:00:08]} 55. Rc8# {[%clk 0:00:02]} 1-0


[Site "https://www.chess.com"]

[Event "Titled Tuesday Blitz June 07 Early 2022"]
[White "Kosteniuk, Alexandra"]
[Black "Aitbayev, Aslan"]
[WhiteFideId "4128125"]
[BlackFideId "13704613"]
[WhiteElo "2469"]
[BlackElo "2385"]
[Result "0-1"]
[Round "08"]
[TimeControl "180+1"]
[Date "2022.06.07"]
[WhiteClock "0:00:01"]
[BlackClock "0:00:09"]

1. e4 {[%clk 0:03:00]}  e6 {[%clk 0:02:58]} 2. d4 {[%clk 0:03:00]}  d5 {[%clk 0:02:57]} 3. Nc3 {[%clk 0:03:00]}  Bb4 {[%clk 0:02:57]} 4. e5 {[%clk 0:02:59]}  c5 {[%clk 0:02:56]} 5. a3 {[%clk 0:03:00]}  Bxc3+ {[%clk 0:02:56]} 6. bxc3 {[%clk 0:03:00]}  Ne7 {[%clk 0:02:57]} 7. h4 {[%clk 0:02:59]}  Qc7 {[%clk 0:02:56]} 8. Bd2 {[%clk 0:02:55]}  b6 {[%clk 0:02:50]} 9. h5 {[%clk 0:02:55]}  h6 {[%clk 0:02:50]} 10. Qg4 {[%clk 0:02:49]}  Nf5 {[%clk 0:02:36]} 11. Bd3 {[%clk 0:02:46]}  O-O {[%clk 0:02:34]} 12. Nf3 {[%clk 0:02:39]}  Nc6 {[%clk 0:02:25]} 13. Qf4 {[%clk 0:02:17]}  f6 {[%clk 0:02:18]} 14. Bxf5 {[%clk 0:01:56]}  exf5 {[%clk 0:02:15]} 15. exf6 {[%clk 0:01:44]}  Qxf4 {[%clk 0:01:59]} 16. Bxf4 {[%clk 0:01:45]}  Rxf6 {[%clk 0:01:58]} 17. Kd2 {[%clk 0:01:45]}  Re6 {[%clk 0:01:46]} 18. Be5 {[%clk 0:01:24]}  Na5 {[%clk 0:01:33]} 19. Rh4 {[%clk 0:01:13]}  Nc4+ {[%clk 0:01:30]} 20. Kc1 {[%clk 0:01:12]}  Bd7 {[%clk 0:01:22]} 21. Rf4 {[%clk 0:01:09]}  Rf8 {[%clk 0:01:17]} 22. Kb1 {[%clk 0:01:04]}  Ba4 {[%clk 0:01:00]} 23. Rh4 {[%clk 0:00:39]}  Rc8 {[%clk 0:00:40]} 24. Ra2 {[%clk 0:00:16]}  Rce8 {[%clk 0:00:11]} 25. Kc1 {[%clk 0:00:15]}  Rc8 {[%clk 0:00:07]} 26. Rf4 {[%clk 0:00:12]}  Rf8 {[%clk 0:00:07]} 27. Rh4 {[%clk 0:00:12]}  Kh7 {[%clk 0:00:06]} 28. Rh3 {[%clk 0:00:10]}  Rc8 {[%clk 0:00:06]} 29. Rg3 {[%clk 0:00:10]}  Re7 {[%clk 0:00:05]} 30. Rg6 {[%clk 0:00:09]}  Be8 {[%clk 0:00:05]} 31. Rg3 {[%clk 0:00:05]}  Bxh5 {[%clk 0:00:05]} 32. a4 {[%clk 0:00:05]}  Bxf3 {[%clk 0:00:05]} 33. Rxf3 {[%clk 0:00:05]}  Nxe5 {[%clk 0:00:06]} 34. dxe5 {[%clk 0:00:06]}  Rxe5 {[%clk 0:00:07]} 35. Kd2 {[%clk 0:00:07]}  g6 {[%clk 0:00:06]} 36. a5 {[%clk 0:00:07]}  b5 {[%clk 0:00:07]} 37. a6 {[%clk 0:00:08]}  Rb8 {[%clk 0:00:07]} 38. Ra5 {[%clk 0:00:08]}  Rb6 {[%clk 0:00:07]} 39. Rd3 {[%clk 0:00:08]}  Kg7 {[%clk 0:00:08]} 40. Rh3 {[%clk 0:00:08]}  h5 {[%clk 0:00:08]} 41. Rd3 {[%clk 0:00:07]}  Kf6 {[%clk 0:00:08]} 42. c4 {[%clk 0:00:07]}  bxc4 {[%clk 0:00:08]} 43. Rda3 {[%clk 0:00:06]}  d4 {[%clk 0:00:08]} 44. R3a4 {[%clk 0:00:05]}  c3+ {[%clk 0:00:08]} 45. Kd3 {[%clk 0:00:06]}  Ke6 {[%clk 0:00:08]} 46. Kc4 {[%clk 0:00:05]}  Kd6 {[%clk 0:00:08]} 47. Kd3 {[%clk 0:00:02]}  g5 {[%clk 0:00:07]} 48. g3 {[%clk 0:00:02]}  h4 {[%clk 0:00:07]} 49. gxh4 {[%clk 0:00:03]}  gxh4 {[%clk 0:00:08]} 50. Ra1 {[%clk 0:00:02]}  h3 {[%clk 0:00:08]} 51. Rh1 {[%clk 0:00:02]}  c4+ {[%clk 0:00:08]} 52. Kxd4 {[%clk 0:00:01]}  Rxa5 {[%clk 0:00:09]} 0-1


[Site "https://www.chess.com"]